fUST/lending_fUST_20250916
["ID","MTS","AMOUNT","RATE_DAILY","PERIOD"]
[385723185,1757991047071,-480.0,0.00022465,3]
[385723186,1757991047080,-480.0,0.00022465,3]
[385723187,1757991047090,-650.34,0.00022465,3]
[385723188,1757991047100,-480.0,0.00022465,3]
[385723189,1757991047109,-561.08,0.00022465,3]
[385723190,1757991047118,-480.0,0.00022465,3]
[385723191,1757991047128,-480.0,0.00022465,3]
[385723192,1757991047137,-480.0,0.00022465,3]
[385723193,1757991047146,-480.0,0.00022465,3]
[385723194,1757991047155,-345.93775839,0.00022465,3]
[385723195,1757991047165,-441.77254458,0.00022465,3]
[385723196,1757991047177,-480.0,0.00022465,3]
[385723197,1757991047189,-480.0,0.00022465,3]
[385723198,1757991047198,-480.0,0.00022465,3]
[385723199,1757991047207,-480.0,0.00022465,3]
[385723200,1757991047216,-480.0,0.00022465,3]
[385723201,1757991047225,-338.92895351,0.00022465,3]
[385723202,1757991047234,-480.0,0.00022465,3]
[385723203,1757991047243,-480.0,0.00022465,3]
[385723204,1757991047252,-480.0,0.00022465,3]
[385723205,1757991047262,-480.0,0.00022465,3]
[385723206,1757991047272,-480.0,0.00022465,3]
[385723207,1757991047282,-480.0,0.00022465,3]
[385723208,1757991047292,-480.0,0.00022465,3]
[385723209,1757991047303,-480.0,0.00022465,3]
[385723210,1757991047314,-480.0,0.00022465,3]
[385723211,1757991047324,-480.0,0.00022465,3]
[385723212,1757991047334,-480.0,0.00022465,3]
[385723213,1757991047343,-480.0,0.00022465,3]
[385723214,1757991047353,-480.0,0.00022465,3]
[385723215,1757991047362,-795.64,0.00022465,3]
[385723216,1757991047374,-511.9,0.00022465,3]
[385723217,1757991047383,-480.0,0.00022465,3]
[385723218,1757991047395,-610.16169356,0.00022465,3]
[385723219,1757991047405,-501.44,0.00022465,3]
[385723220,1757991047414,-480.0,0.00022465,3]
[385723221,1757991047423,-480.0,0.00022465,3]
[385723222,1757991047432,-480.0,0.00022465,3]
[385723223,1757991047441,-480.0,0.00022465,3]
[385723224,1757991047450,-480.0,0.00022465,3]
[385723225,1757991047459,-480.0,0.00022465,3]
[385723226,1757991047468,-2079.07,0.00022465,3]
[385723227,1757991047478,-480.0,0.00022465,3]
[385723228,1757991047487,-480.0,0.00022465,3]
[385723229,1757991047496,-480.0,0.00022465,3]
[385723230,1757991047505,-480.0,0.00022465,3]
[385723231,1757991047515,-480.0,0.00022465,3]
[385723232,1757991047524,-1000.0,0.00022521,2]
[385723233,1757991047533,-1000.0,0.00022521,2]
[385723234,1757991047547,-1000.0,0.00022521,2]
[385723235,1757991047556,-500.93979684,0.00022521,2]
[385723236,1757991047566,-502.05338767,0.00022521,2]
[385723237,1757991047575,-501.52175241,0.00022521,2]
[385723238,1757991047587,-1000.0,0.00022521,2]
[385723239,1757991047596,-1021.50871399,0.00022521,2]
[385723240,1757991047606,-503.87396356,0.00022521,2]
[385723241,1757991047617,-500.78713878,0.00022521,2]
[385723242,1757991047625,-1004.6843169,0.00022521,2]
[385723243,1757991047635,-501.17687178,0.00022521,2]
[385723244,1757991047644,-1000.0,0.00022521,2]
[385723245,1757991047654,-1000.0,0.00022521,2]
[385723246,1757991047663,-505.12923683,0.00022521,2]
[385723247,1757991047672,-500.59864287,0.00022521,2]
[385723248,1757991047682,-241.09769967,0.00022521,2]
[385723249,1757991047691,-155.81930119,0.00022521,2]
[385723250,1757991047700,-178.1284,0.00022521,7]
[385723251,1757991047711,-1000.0,0.00022521,2]
[385723252,1757991047720,-1000.0,0.00022521,2]
[385723253,1757991047730,-1000.0,0.00022521,2]
[385723254,1757991047740,-1000.0,0.00022521,2]
[385723255,1757991047751,-1000.0,0.00022521,2]
[385723256,1757991047762,-1000.0,0.00022521,2]
[385723257,1757991047774,-1000.0,0.00022521,2]
[385723258,1757991047784,-1000.0,0.00022521,2]
[385723259,1757991047795,-1000.0,0.00022521,2]
[385723260,1757991047804,-1000.0,0.00022521,2]
[385723261,1757991047814,-1000.0,0.00022521,2]
[385723262,1757991047824,-748.681608,0.00022521,7]
[385723263,1757991047833,-1000.0,0.00022521,2]
[385723264,1757991047842,-1000.0,0.00022521,2]
[385723265,1757991047855,-1000.0,0.00022521,2]
[385723266,1757991047865,-1000.0,0.00022521,2]
[385723267,1757991047876,-1000.0,0.00022521,2]
[385723268,1757991047886,-748.681608,0.00022521,7]
[385723269,1757991047896,-1000.0,0.00022521,2]
[385723270,1757991047905,-1000.0,0.00022521,2]
[385723271,1757991047914,-1000.0,0.00022521,2]
[385723272,1757991047923,-1000.0,0.00022521,2]
[385723273,1757991047932,-1000.0,0.00022521,2]
[385723274,1757991047942,-1000.0,0.00022521,2]
[385723275,1757991047951,-748.681608,0.00022521,7]
[385723276,1757991047960,-1000.0,0.00022521,2]
[385723277,1757991047970,-1000.0,0.00022521,2]
[385723278,1757991047980,-1000.0,0.00022521,2]
[385723279,1757991047990,-1000.0,0.00022521,2]
[385723280,1757991047999,-748.681608,0.00022521,7]
[385723281,1757991048008,-1000.0,0.00022521,2]
[385723282,1757991048018,-1000.0,0.00022521,2]
[385723283,1757991048027,-1000.0,0.00022521,2]
[385723284,1757991048037,-1000.0,0.00022521,2]
[385723285,1757991048046,-1000.0,0.00022521,2]
[385723286,1757991048055,-1000.0,0.00022521,2]
[385723287,1757991048065,-1000.0,0.00022521,2]
[385723288,1757991048074,-1000.0,0.00022521,2]
[385723289,1757991048083,-1000.0,0.00022521,2]
[385723290,1757991048093,-1000.0,0.00022521,2]
[385723291,1757991048101,-1000.0,0.00022521,2]
[385723292,1757991048111,-1000.0,0.00022521,2]
[385723293,1757991048125,-480.0,0.00022531,3]
[385723294,1757991048134,-165.416329,0.00022531,7]
[385723295,1757991048143,-151.0,0.00022531,7]
[385723296,1757991048153,-199.278391,0.00022531,7]
[385723297,1757991048162,-151.0,0.00022531,7]
[385723298,1757991048172,-230.09351721,0.00022532,3]
[385723299,1757991048259,-229.88086701,0.00022532,3]
[385723300,1757991048271,-155.99122862,0.00022532,3]
[385723301,1757991048281,-261.57577187,0.00022532,3]
[385723302,1757991048293,-219.16865758,0.00022532,3]
[385723303,1757991048303,-480.0,0.00022532,3]
[385723304,1757991048312,-155.445078,0.00022532,7]
[385723305,1757991048322,-151.0,0.00022532,7]
[385723306,1757991048332,-552.28362185,0.00022532,3]
[385723307,1757991048341,-168.58702569,0.00022532,3]
[385723308,1757991048351,-151.0,0.00022532,7]
[385723309,1757991048360,-480.0,0.00022532,3]
[385723310,1757991048370,-480.0,0.00022532,3]
[385723311,1757991048380,-480.0,0.00022532,3]
[385723312,1757991048390,-368.58497926,0.00022532,3]
[385723313,1757991048399,-176.07166876,0.00022532,3]
[385723314,1757991048409,-162.25740872,0.00022532,3]
[385723315,1757991048419,-443.33496437,0.00022532,3]
[385723316,1757991048431,-480.0,0.00022532,3]
[385723317,1757991048441,-154.197938,0.00022532,7]
[385723318,1757991048450,-154.197938,0.00022532,7]
[385723319,1757991048460,-154.197938,0.00022532,7]
[385723320,1757991048469,-154.197938,0.00022532,7]
[385723321,1757991048478,-151.0,0.00022532,7]
[385723322,1757991048488,-172.558459,0.00022532,7]
[385723323,1757991048498,-151.0,0.00022532,7]
[385723324,1757991048507,-151.0,0.00022532,7]
[385723325,1757991048517,-151.0,0.00022532,7]
[385723326,1757991048525,-202.442081,0.00022532,7]
[385723327,1757991048536,-239.501219,0.00022532,7]
[385723328,1757991048547,-239.501219,0.00022532,7]
[385723329,1757991048557,-239.501219,0.00022532,7]
[385723330,1757991048566,-239.501219,0.00022532,7]
[385723331,1757991048576,-247.27819196,0.00022532,3]
[385723332,1757991048585,-217.771726,0.00022532,7]
[385723333,1757991048594,-217.771726,0.00022532,7]
[385723334,1757991048603,-217.771726,0.00022532,7]
[385723335,1757991048613,-217.771726,0.00022532,7]
[385723336,1757991048622,-480.0,0.00022532,3]
[385723337,1757991048631,-151.0,0.00022532,7]
[385723338,1757991048641,-151.0,0.00022532,7]
[385723339,1757991048650,-151.4407665,0.00022532,3]
[385723340,1757991048659,-151.0,0.00022533,2]
[385723341,1757991048669,-151.0,0.00022533,2]
[385723342,1757991048678,-151.0,0.00022533,2]
[385723343,1757991048687,-151.0,0.00022533,2]
[385723344,1757991048696,-500.0,0.00022533,2]
[385723345,1757991048705,-480.0,0.00022534,3]
[385723346,1757991048715,-5000.0,0.00022568,2]
[385723347,1757991048725,-611.72575167,0.00022616,2]
[385723348,1757991048735,-1516.94503133,0.00022616,2]
[385723349,1757991048744,-2000.0,0.00022616,2]
[385723350,1757991048753,-2012.71049064,0.00022616,2]
[385723351,1757991048762,-510.19796224,0.00022616,2]
[385723352,1757991048772,-565.83892727,0.00022632,2]
[385723353,1757991048781,-480.0,0.00022739,3]
[385723354,1757991048791,-425.65287705,0.00022739,3]
[385723355,1757991048800,-296.13457217,0.00022739,3]
[385723356,1757991048810,-480.0,0.00022739,3]
[385723357,1757991048820,-480.0,0.00022739,3]
[385723358,1757991048829,-480.0,0.00022739,3]
[385723359,1757991048839,-480.0,0.00022739,3]
[385723360,1757991048848,-480.0,0.00022739,3]
[385723361,1757991048858,-480.0,0.00022739,3]
[385723362,1757991048868,-1371.98,0.00022739,3]
[385723363,1757991048878,-480.0,0.00022739,3]
[385723364,1757991048887,-480.0,0.00022739,3]
[385723365,1757991048896,-480.0,0.00022739,3]
[385723366,1757991048906,-480.0,0.00022739,3]
[385723367,1757991048915,-480.0,0.00022739,3]
[385723368,1757991048924,-737.98,0.00022739,3]
[385723369,1757991048933,-480.0,0.00022739,3]
[385723370,1757991048942,-480.0,0.00022739,3]
[385723371,1757991048952,-480.0,0.00022739,3]
[385723372,1757991048961,-480.0,0.00022739,3]
[385723373,1757991048971,-650.34,0.00022739,3]
[385723374,1757991048981,-480.0,0.00022739,3]
[385723375,1757991048991,-561.08,0.00022739,3]
[385723376,1757991049001,-480.0,0.00022739,3]
[385723377,1757991049011,-480.0,0.00022739,3]
[385723378,1757991049020,-480.0,0.00022739,3]
[385723379,1757991049030,-480.0,0.00022739,3]
[385723380,1757991049040,-480.0,0.00022739,3]
[385723381,1757991049049,-480.0,0.00022739,3]
[385723382,1757991049058,-480.0,0.00022739,3]
[385723383,1757991049068,-480.0,0.00022739,3]
[385723384,1757991049078,-374.98057039,0.00022739,3]
[385723385,1757991049087,-411.15419452,0.00022739,3]
[385723386,1757991049096,-531.18067476,0.00022739,3]
[385723387,1757991049106,-480.0,0.00022739,3]
[385723388,1757991049115,-480.0,0.00022739,3]
[385723389,1757991049124,-165.81210614,0.00022739,3]
[385723390,1757991049134,-206.61199552,0.00022739,3]
[385723391,1757991049143,-480.0,0.00022739,3]
[385723392,1757991049152,-480.0,0.00022739,3]
[385723393,1757991049162,-480.0,0.00022739,3]
[385723394,1757991049171,-480.0,0.00022739,3]
[385723395,1757991049180,-480.0,0.00022739,3]
[385723396,1757991049189,-480.0,0.00022739,3]
[385723397,1757991049198,-331.79694727,0.00022739,3]
[385723398,1757991049207,-795.64,0.00022739,3]
[385723399,1757991049216,-511.9,0.00022739,3]
[385723400,1757991049225,-434.06235482,0.00022739,3]
[385723401,1757991049234,-501.44,0.00022739,3]
[385723402,1757991049244,-480.0,0.00022739,3]
[385723403,1757991049255,-253.85026314,0.00022739,3]
[385723404,1757991049264,-480.0,0.00022739,3]
[385723405,1757991049273,-480.0,0.00022739,3]
[385723406,1757991049282,-480.0,0.00022739,3]
[385723407,1757991049291,-480.0,0.00022739,3]
[385723408,1757991049301,-2079.07,0.00022739,3]
[385723409,1757991049310,-480.0,0.00022739,3]
[385723410,1757991049319,-196.66982665,0.00022739,3]
[385723411,1757991049328,-480.0,0.00022739,3]
[385723412,1757991049338,-480.0,0.00022739,3]
[385723413,1757991049348,-480.0,0.00022739,3]
[385723414,1757991049358,-1000.0,0.000228,3]
[385723415,1757991049367,-175.017682,0.00022805,7]
[385723416,1757991049377,-175.017682,0.00022805,7]
[385723417,1757991049387,-175.017682,0.00022805,7]
[385723418,1757991049397,-175.017682,0.00022805,7]
[385723419,1757991049408,-157.099397,0.00022805,7]
[385723420,1757991049418,-480.0,0.00022805,3]
[385723421,1757991049427,-480.0,0.00022806,3]
[385723422,1757991049436,-480.0,0.00022806,3]
[385723423,1757991049445,-480.0,0.00022806,3]
[385723424,1757991049454,-294.18,0.00022806,3]
[385723425,1757991049463,-151.0,0.00022806,7]
[385723426,1757991049472,-151.0,0.00022806,7]
[385723427,1757991049482,-151.0,0.00022806,7]
[385723428,1757991049491,-151.0,0.00022806,7]
[385723429,1757991049500,-480.0,0.00022806,3]
[385723430,1757991049509,-619.67217785,0.00022806,3]
[385723431,1757991049518,-159.61060249,0.00022807,2]
[385723432,1757991049528,-165.36353337,0.00022807,2]
[385723433,1757991049539,-164.66831296,0.00022807,2]
[385723434,1757991049551,-164.2224735,0.00022807,2]
[385723435,1757991049560,-548.19219168,0.00022807,2]
[385723436,1757991049571,-270.73233142,0.00022808,3]
[385723437,1757991049580,-420.0,0.00022813,2]
[385723438,1757991049591,-260.0,0.00022834,2]
[385723439,1757991049600,-552.0,0.00022921,2]
[385723440,1757991049610,-500.0,0.0002296,2]
[385723441,1757991049620,-500.81658752,0.0002296,2]
[385723442,1757991049631,-502.65541346,0.0002296,2]
[385723443,1757991049641,-502.18986888,0.0002296,2]
[385723444,1757991049651,-501.55296951,0.0002296,2]
[385723445,1757991049660,-500.0,0.0002296,2]
[385723446,1757991049670,-233.29513139,0.00023,3]
[385723447,1757991049681,-160.0,0.00023,3]
[385723448,1757991049692,-558.24664379,0.00023,3]
[385723449,1757991049702,-448.25375671,0.00023013,3]
[385723450,1757991049717,-525.74921655,0.00023013,3]
[385723451,1757991049726,-462.90414144,0.00023013,3]
[385723452,1757991049735,-480.0,0.00023013,3]
[385723453,1757991049745,-550.19069414,0.00023013,3]
[385723454,1757991049754,-480.0,0.00023013,3]
[385723455,1757991049763,-151.0,0.00023013,7]
[385723456,1757991049772,-157.721584,0.00023013,7]
[385723457,1757991049781,-151.0,0.00023013,7]
[385723458,1757991049790,-480.0,0.00023013,3]
[385723459,1757991049799,-151.0,0.00023013,7]
[385723460,1757991049808,-1371.98,0.00023013,3]
[385723461,1757991049818,-480.0,0.00023013,3]
[385723462,1757991049828,-480.0,0.00023013,3]
[385723463,1757991049838,-239.501219,0.00023013,7]
[385723464,1757991049848,-288.22008905,0.00023013,3]
[385723465,1757991049858,-239.501219,0.00023013,7]
[385723466,1757991049867,-239.501219,0.00023013,7]
[385723467,1757991049878,-208.66613658,0.00023013,3]
[385723468,1757991049958,-239.501219,0.00023013,7]
[385723469,1757991049968,-480.0,0.00023013,3]
[385723470,1757991049977,-217.771726,0.00023013,7]
[385723471,1757991049987,-737.98,0.00023013,3]
[385723472,1757991049996,-217.771726,0.00023013,7]
[385723473,1757991050006,-480.0,0.00023013,3]
[385723474,1757991050015,-217.771726,0.00023013,7]
[385723475,1757991050024,-480.0,0.00023013,3]
[385723476,1757991050033,-217.771726,0.00023013,7]
[385723477,1757991050042,-467.30847859,0.00023013,3]
[385723478,1757991050051,-480.0,0.00023013,3]
[385723479,1757991050060,-650.34,0.00023013,3]
[385723480,1757991050069,-480.0,0.00023013,3]
[385723481,1757991050079,-561.08,0.00023013,3]
[385723482,1757991050087,-480.0,0.00023013,3]
[385723483,1757991050097,-256.48803816,0.00023013,3]
[385723484,1757991050106,-480.0,0.00023013,3]
[385723485,1757991050114,-480.0,0.00023013,3]
[385723486,1757991050123,-151.0,0.00023013,7]
[385723487,1757991050132,-151.0,0.00023013,7]
[385723488,1757991050141,-480.0,0.00023013,3]
[385723489,1757991050150,-151.0,0.00023013,7]
[385723490,1757991050159,-480.0,0.00023013,3]
[385723491,1757991050169,-151.0,0.00023013,7]
[385723492,1757991050178,-480.0,0.00023013,3]
[385723493,1757991050188,-480.0,0.00023013,3]
[385723494,1757991050198,-313.44074367,0.00023013,3]
[385723495,1757991050207,-400.86239142,0.00023013,3]
[385723496,1757991050594,-151.0,0.0002181,2]
[385723497,1757991050605,-151.0,0.00022084,2]
[385723498,1757991050614,-215.70336758,0.00022358,2]
[385723499,1757991050623,-1000.0,0.00022521,2]
[385723500,1757991050633,-1000.0,0.00022521,2]
[385723501,1757991050642,-1000.0,0.00022521,2]
[385723502,1757991050651,-1000.0,0.00022521,2]
[385723503,1757991050660,-1000.0,0.00022521,2]
[385723504,1757991050670,-1000.0,0.00022521,2]
[385723505,1757991050679,-1000.0,0.00022521,2]
[385723506,1757991050688,-79.13760858,0.00023013,3]
[385723507,1757991050697,-480.0,0.00023013,3]
[385723508,1757991050706,-480.0,0.00023013,3]
[385723509,1757991050715,-480.0,0.00023013,3]
[385723510,1757991050725,-480.0,0.00023013,3]
[385723511,1757991050734,-480.0,0.00023013,3]
[385723512,1757991050748,-480.0,0.00023013,3]
[385723513,1757991050757,-795.64,0.00023013,3]
[385723514,1757991050766,-511.9,0.00023013,3]
[385723515,1757991050776,-501.44,0.00023013,3]
[385723516,1757991050785,-480.0,0.00023013,3]
[385723517,1757991050794,-480.0,0.00023013,3]
[385723518,1757991050803,-480.0,0.00023013,3]
[385723519,1757991050812,-480.0,0.00023013,3]
[385723520,1757991050822,-480.0,0.00023013,3]
[385723521,1757991050831,-2079.07,0.00023013,3]
[385723522,1757991050840,-480.0,0.00023013,3]
[385723523,1757991050849,-480.0,0.00023013,3]
[385723524,1757991050858,-748.681608,0.00023013,7]
[385723525,1757991050868,-748.681608,0.00023013,7]
[385723526,1757991050877,-543.3602485,0.00023013,3]
[385723527,1757991050886,-748.681608,0.00023013,7]
[385723528,1757991050895,-748.681608,0.00023013,7]
[385723529,1757991050904,-480.0,0.00023013,3]
[385723530,1757991050913,-301.17731702,0.00023061,2]
[385723531,1757991050922,-1500.0,0.00023068,2]
[385723532,1757991050931,-1513.21814832,0.00023068,2]
[385723533,1757991050940,-254.48114806,0.00023068,2]
[385723534,1757991050951,-1500.0,0.00023068,2]
[385723535,1757991050960,-1500.0,0.00023068,2]
[385723536,1757991050970,-1500.0,0.00023068,2]
[385723537,1757991050979,-500.0,0.00023073,2]
[385723538,1757991050988,-504.45544094,0.00023076,2]
[385723539,1757991050998,-156.980556,0.00023079,7]
[385723540,1757991051007,-151.0,0.00023079,7]
[385723541,1757991051017,-480.0,0.00023079,3]
[385723542,1757991051026,-480.0,0.0002308,3]
[385723543,1757991051036,-238.42,0.0002308,3]
[385723544,1757991051045,-480.0,0.0002308,3]
[385723545,1757991051054,-480.0,0.0002308,3]
[385723546,1757991051064,-151.0,0.00023089,2]
[385723547,1757991051074,-151.0,0.00023089,2]
[385723548,1757991051083,-151.0,0.00023089,2]
[385723549,1757991051092,-151.0,0.00023089,2]
[385723550,1757991051101,-151.0,0.00023089,2]
[385723551,1757991051111,-152.38520953,0.00023089,2]
[385723552,1757991051120,-500.0,0.00023089,2]
[385723553,1757991051129,-500.0,0.00023089,2]
[385723554,1757991051138,-182.83035011,0.00023089,2]
[385723555,1757991051148,-500.0,0.00023089,2]
[385723556,1757991051157,-153.48451375,0.00023089,2]
[385723557,1757991051166,-500.0,0.00023089,2]
[385723558,1757991051175,-500.0,0.00023089,2]
[385723559,1757991051184,-500.0,0.00023089,2]
[385723560,1757991051194,-500.0,0.00023089,2]
[385723561,1757991051203,-500.0,0.00023089,2]
[385723562,1757991051213,-151.0,0.00023089,2]
[385723563,1757991051223,-1000.0,0.00023089,2]
[385723564,1757991051232,-500.0,0.00023089,2]
[385723565,1757991051241,-1000.0,0.00023089,2]
[385723566,1757991051250,-151.0,0.00023089,2]
[385723567,1757991051259,-500.0,0.00023089,2]
[385723568,1757991051269,-1000.0,0.00023089,2]
[385723569,1757991051278,-500.0,0.00023089,2]
[385723570,1757991051287,-1000.0,0.00023089,2]
[385723571,1757991051296,-151.0,0.00023089,2]
[385723572,1757991051305,-500.0,0.00023089,2]
[385723573,1757991051315,-1000.0,0.00023089,2]
[385723574,1757991051324,-151.0,0.00023089,2]
[385723575,1757991051333,-1000.0,0.00023089,2]
[385723576,1757991051413,-500.0,0.00023089,2]
[385723577,1757991051423,-151.0,0.00023089,2]
[385723578,1757991051433,-1000.0,0.00023089,2]
[385723579,1757991051444,-500.0,0.00023089,2]
[385723580,1757991051455,-500.0,0.00023089,2]
[385723581,1757991051465,-175.14386007,0.00023089,2]
[385723582,1757991051475,-1000.0,0.00023089,2]
[385723583,1757991051484,-500.0,0.00023089,2]
[385723584,1757991051494,-500.0,0.00023089,2]
[385723585,1757991051504,-1000.0,0.00023089,2]
[385723586,1757991051513,-500.0,0.00023089,2]
[385723587,1757991051522,-500.0,0.00023089,2]
[385723588,1757991051531,-1000.0,0.00023089,2]
[385723589,1757991051543,-500.0,0.00023089,2]
[385723590,1757991051552,-1000.0,0.00023089,2]
[385723591,1757991051562,-500.0,0.00023089,2]
[385723592,1757991051571,-1000.0,0.00023089,2]
[385723593,1757991051580,-507.63321276,0.00023089,2]
[385723594,1757991051590,-1000.0,0.00023089,2]
[385723595,1757991051601,-1000.0,0.00023089,2]
[385723596,1757991051612,-157.34399615,0.00023089,2]
[385723597,1757991051623,-151.0,0.00023089,2]
[385723598,1757991051633,-151.0,0.00023089,2]
[385723599,1757991051644,-151.0,0.00023089,2]
[385723600,1757991051653,-151.0,0.00023089,2]
[385723601,1757991051662,-502.34417217,0.00023108,2]
[385723602,1757991051671,-501.57405516,0.00023108,2]
[385723603,1757991051682,-500.0,0.00023108,2]
[385723604,1757991051691,-1098.31970209,0.00023164,2]
[385723605,1757991051702,-480.0,0.00023287,3]
[385723606,1757991051712,-480.0,0.00023287,3]
[385723607,1757991051723,-480.0,0.00023287,3]
[385723608,1757991051733,-1371.98,0.00023287,3]
[385723609,1757991051742,-480.0,0.00023287,3]
[385723610,1757991051751,-480.0,0.00023287,3]
[385723611,1757991051760,-272.4586515,0.00023287,3]
[385723612,1757991051769,-737.98,0.00023287,3]
[385723613,1757991051778,-480.0,0.00023287,3]
[385723614,1757991051788,-480.0,0.00023287,3]
[385723615,1757991051797,-480.0,0.00023287,3]
[385723616,1757991051806,-650.34,0.00023287,3]
[385723617,1757991051815,-480.0,0.00023287,3]
[385723618,1757991051824,-561.08,0.00023287,3]
[385723619,1757991051833,-480.0,0.00023287,3]
[385723620,1757991051842,-426.31449741,0.00023287,3]
[385723621,1757991051853,-451.31848303,0.00023287,3]
[385723622,1757991051863,-480.0,0.00023287,3]
[385723623,1757991051874,-204.5493358,0.00023287,3]
[385723624,1757991051884,-480.0,0.00023287,3]
[385723625,1757991051894,-480.0,0.00023287,3]
[385723626,1757991051903,-302.73082146,0.00023287,3]
[385723627,1757991051912,-588.00427254,0.00023287,3]
[385723628,1757991051923,-480.0,0.00023287,3]
[385723629,1757991051934,-480.0,0.00023287,3]
[385723630,1757991051943,-480.0,0.00023287,3]
[385723631,1757991051952,-480.0,0.00023287,3]
[385723632,1757991051961,-480.0,0.00023287,3]
[385723633,1757991051971,-795.64,0.00023287,3]
[385723634,1757991051980,-511.9,0.00023287,3]
[385723635,1757991051989,-501.44,0.00023287,3]
[385723636,1757991051999,-480.0,0.00023287,3]
[385723637,1757991052009,-480.0,0.00023287,3]
[385723638,1757991052018,-480.0,0.00023287,3]
[385723639,1757991052027,-480.0,0.00023287,3]
[385723640,1757991052036,-480.0,0.00023287,3]
[385723641,1757991052045,-2079.07,0.00023287,3]
[385723642,1757991052054,-480.0,0.00023287,3]
[385723643,1757991052063,-480.0,0.00023287,3]
[385723644,1757991052072,-480.0,0.00023287,3]
[385723645,1757991052081,-480.0,0.00023353,3]
[385723646,1757991052089,-480.0,0.00023354,3]
[385723647,1757991052099,-156.647022,0.00023354,7]
[385723648,1757991052108,-495.01857504,0.00023354,3]
[385723649,1757991052117,-511.19,0.00023354,3]
[385723650,1757991052126,-360.0,0.00023382,2]
[385723651,1757991052136,-154.197938,0.00023479,7]
[385723652,1757991052145,-154.197938,0.00023479,7]
[385723653,1757991052154,-154.197938,0.00023479,7]
[385723654,1757991052163,-154.197938,0.00023479,7]
[385723655,1757991052172,-1000.0,0.00023508,2]
[385723656,1757991052181,-502.03206708,0.00023508,2]
[385723657,1757991052191,-177.12974428,0.00023561,3]
[385723658,1757991052199,-480.0,0.00023561,3]
[385723659,1757991052210,-480.0,0.00023561,3]
[385723660,1757991052220,-1371.98,0.00023561,3]
[385723661,1757991052230,-480.0,0.00023561,3]
[385723662,1757991052240,-480.0,0.00023561,3]
[385723663,1757991052249,-737.98,0.00023561,3]
[385723664,1757991052258,-461.31564127,0.00023561,3]
[385723665,1757991052267,-590.8197047,0.00023561,3]
[385723666,1757991052277,-480.0,0.00023561,3]
[385723667,1757991052286,-650.34,0.00023561,3]
[385723668,1757991052295,-480.0,0.00023561,3]
[385723669,1757991052304,-561.08,0.00023561,3]
[385723670,1757991052314,-480.0,0.00023561,3]
[385723671,1757991052323,-480.0,0.00023561,3]
[385723672,1757991052332,-480.0,0.00023561,3]
[385723673,1757991052342,-480.0,0.00023561,3]
[385723674,1757991052351,-480.0,0.00023561,3]
[385723675,1757991052360,-480.0,0.00023561,3]
[385723676,1757991052369,-568.17411845,0.00023561,3]
[385723677,1757991052379,-558.74333133,0.00023561,3]
[385723678,1757991052388,-480.0,0.00023561,3]
[385723679,1757991052397,-795.64,0.00023561,3]
[385723680,1757991052406,-511.9,0.00023561,3]
[385723681,1757991052416,-501.44,0.00023561,3]
[385723682,1757991052426,-399.2608514,0.00023561,3]
[385723683,1757991052435,-480.0,0.00023561,3]
[385723684,1757991052445,-480.0,0.00023561,3]